bitfinex-derivatives/quotes_ETHF0:USTF0_20210110
["timestamp","ask_amount","ask_price","bid_price","bid_amount"]
[1610245890519,2.70786,1324.1,1324.0,6.45739]
[1610245893821,2.70786,1324.1,1324.0,10.48933]
[1610245894522,2.70786,1324.1,1324.0,6.45739]
[1610245895424,2.70786,1324.1,1324.0,10.48305]
[1610245895823,2.70786,1324.1,1324.0,6.45739]
[1610245899127,2.70786,1324.1,1324.0,10.91306]
[1610245900528,2.70786,1324.1,1324.0,6.45739]
[1610245901331,2.2509,1326.2,1324.0,6.45739]
[1610245901530,2.2509,1326.2,1324.0,9.86239]
[1610245902133,4.00959,1326.1,1325.8,4.00959]
[1610245902538,4.00959,1326.1,1326.0,2.68311]
[1610245902935,2.2509,1326.2,1326.0,2.68311]
[1610245903335,57.0766,1327.0,1326.0,2.68311]
[1610245903633,57.0766,1327.0,1326.9,1.34058]
[1610245904034,61.08619,1327.0,1326.9,1.34058]
[1610245905633,91.08619,1327.0,1326.9,1.34058]
[1610245906633,61.08619,1327.0,1326.9,1.34058]
[1610245907534,91.08619,1327.0,1326.9,1.34058]
[1610245908634,91.08619,1327.0,1326.8,1.34221]
[1610245909035,93.48869,1327.0,1326.7,1.34271]
[1610245909334,63.48869,1327.0,1326.7,1.34271]
[1610245909636,63.48869,1327.0,1326.8,1.34233]
[1610245909835,6.41209,1327.0,1326.8,1.34233]
[1610245910635,6.41209,1327.0,1326.9,1.34105]
[1610245914041,6.41209,1327.0,1326.8,1.34151]
[1610245914241,6.41209,1327.0,1326.8,5.3511]
[1610245914443,36.41209,1327.0,1326.8,1.34151]
[1610245915343,30.0,1326.9,1326.8,1.34151]
[1610245916445,6.41209,1327.0,1326.8,1.34151]
[1610245916646,36.41209,1327.0,1326.8,1.34151]
[1610245916846,36.41209,1327.0,1326.9,1.34517]
[1610245917647,6.41209,1327.0,1326.9,1.34517]
[1610245917948,36.41209,1327.0,1326.9,1.34517]
[1610245918449,36.41209,1327.0,1326.8,1.34687]
[1610245919751,36.41209,1327.0,1326.7,1.34811]
[1610245920152,34.00959,1326.8,1326.7,1.34811]
[1610245922457,34.00959,1326.8,1326.5,1.79436]
[1610245923955,4.00959,1326.8,1326.5,1.79436]
[1610245924157,4.00959,1326.6,1326.5,1.79436]
[1610245924357,5.84259,1326.6,1326.5,1.79436]
[1610245924757,5.84259,1326.6,1326.4,1.79418]
[1610245925357,35.84259,1326.6,1326.4,1.79418]
[1610245925758,35.84259,1326.6,1326.3,56.53055]
[1610245926057,35.84259,1326.6,1326.4,1.79582]
[1610245926258,1.833,1326.6,1326.4,1.79582]
[1610245927058,1.833,1326.6,1326.3,56.53216]
[1610245927459,1.833,1326.6,1326.4,1.34955]
[1610245927658,1.833,1326.6,1326.3,56.08509]
[1610245928059,1.833,1326.6,1326.5,1.12564]
[1610245928259,1.833,1326.6,1326.4,1.12625]
[1610245928459,1.833,1326.6,1326.3,54.7347]
[1610245928661,1.833,1326.6,1326.1,1.3515]
[1610245929060,1.833,1326.6,1326.0,1.35232]
[1610245929459,30.0,1326.9,1326.0,1.35232]
[1610245930263,4.00959,1326.1,1326.0,1.35232]
[1610245930463,5.90799,1326.1,1325.9,1.80116]
[1610245930763,5.90799,1326.1,1325.9,2.25001]
[1610245931065,5.90799,1326.1,1325.8,2.25008]
[1610245931465,5.90799,1326.1,1326.0,2.24837]
[1610245932066,5.90799,1326.1,1325.8,2.69748]
[1610245932267,5.90799,1326.1,1326.0,4.00959]
[1610245932868,5.90799,1326.1,1326.0,6.70589]
[1610245934067,5.90799,1326.1,1325.9,2.69697]
[1610245934468,5.90799,1326.1,1325.8,2.69841]
[1610245934868,5.90799,1326.1,1326.0,2.24904]
[1610245935670,5.90799,1326.1,1325.9,2.24927]
[1610245938373,5.90799,1326.1,1325.8,2.24682]
[1610245938773,26.90799,1326.1,1325.9,2.24632]
[1610245938976,26.90799,1326.1,1326.0,2.24454]
[1610245940175,26.90799,1326.1,1326.0,6.25413]
[1610245940976,26.90799,1326.1,1326.0,4.00959]
[1610245943381,26.90799,1326.1,1326.0,6.69992]
[1610245943782,26.90799,1326.1,1326.0,4.00959]
[1610245946381,22.8984,1326.1,1326.0,4.00959]
[1610245949684,22.8984,1326.1,1325.9,2.69039]
[1610245949886,52.8984,1326.1,1325.8,62.34777]
[1610245950286,52.8984,1326.1,1325.9,2.24259]
[1610245950486,52.8984,1326.1,1326.0,1.79555]
[1610245950786,52.8984,1326.1,1325.9,1.79593]
[1610245951586,52.8984,1326.1,1326.0,1.3476]
[1610245952188,56.90799,1326.1,1326.0,1.3476]
[1610245952689,26.90799,1326.1,1326.0,1.3476]
[1610245952889,56.90799,1326.1,1326.0,1.3476]
[1610245953490,56.90799,1326.1,1325.9,1.34805]
[1610245954391,56.90799,1326.1,1326.0,1.3479]
[1610245955293,26.90799,1326.1,1326.0,1.3479]
[1610245955691,26.90799,1326.1,1325.9,1.79433]
[1610245955991,26.90799,1326.1,1326.0,1.79362]
[1610245956394,26.90799,1326.1,1325.8,61.89921]
[1610245956993,26.90799,1326.1,1325.9,2.24028]
[1610245957493,26.90799,1326.1,1325.8,61.89895]
[1610245958094,26.90799,1326.1,1325.9,2.24076]
[1610245959496,26.90799,1326.1,1325.8,62.34488]
[1610245959798,26.90799,1326.1,1326.0,2.23924]
[1610245960201,22.8984,1326.1,1326.0,4.00959]
[1610245961504,22.8984,1326.1,1326.0,6.69476]
[1610245962005,22.8984,1326.1,1326.0,4.00959]
[1610245962205,26.90799,1326.1,1326.0,4.00959]
[1610245962405,26.90799,1326.1,1325.9,2.68546]
[1610245962607,26.90799,1326.1,1325.8,62.34561]
[1610245963209,26.90799,1326.1,1326.0,2.24024]
[1610245963910,22.8984,1326.1,1325.8,62.34561]
[1610245964211,22.8984,1326.1,1326.0,4.00959]
[1610245965212,22.8984,1326.1,1326.0,6.69694]
[1610245965512,22.8984,1326.1,1326.0,4.00959]
[1610245965813,22.8984,1326.1,1326.0,6.69864]
[1610245966314,22.8984,1326.1,1326.0,4.00959]
[1610245968614,22.8984,1326.1,1326.0,6.69716]
[1610245969014,22.8984,1326.1,1326.0,4.00959]
[1610245969217,22.8984,1326.1,1326.0,6.6982]
[1610245970217,26.90799,1326.1,1326.0,6.6982]
[1610245970418,26.90799,1326.1,1326.0,4.00959]
[1610245970819,22.8984,1326.1,1326.0,4.00959]
[1610245974124,22.8984,1326.1,1326.0,6.69488]
[1610245974323,52.8984,1326.1,1326.0,6.69488]
[1610245974525,52.8984,1326.1,1326.0,4.00959]
[1610245974727,52.8984,1326.1,1325.9,2.68594]
[1610245974925,52.8984,1326.1,1325.8,62.34571]
[1610245975425,22.8984,1326.1,1325.8,2.68721]
[1610245976226,22.8984,1326.1,1326.0,4.00959]
[1610245976927,52.8984,1326.1,1325.9,2.68513]
[1610245977127,52.8984,1326.1,1326.0,2.23846]
[1610245978929,52.8984,1326.1,1325.9,2.23672]
[1610245980330,34.00959,1326.0,1325.9,2.23672]
[1610245983439,34.00959,1326.0,1325.8,2.23464]
[1610245987841,34.00959,1326.0,1325.7,2.23931]
[1610245988042,34.00959,1326.0,1325.7,1.79358]
[1610245988445,22.8984,1326.1,1325.1,57.4671]
[1610245988446,34.00959,1325.8,1325.6,1.79415]
[1610245988642,36.15869,1325.8,1325.6,1.79415]
[1610245988846,36.15869,1325.8,1325.5,1.34732]
[1610245989143,36.15869,1325.8,1325.4,1.34773]
[1610245989744,36.15869,1325.8,1325.3,1.3479]
[1610245990343,34.00959,1325.4,1325.3,1.3479]
[1610245990546,35.68589,1325.4,1325.3,1.3479]
[1610245990744,35.68589,1325.4,1325.1,58.81598]
[1610245991145,35.68589,1325.4,1325.1,57.4671]
[1610245992447,34.00959,1325.2,1325.1,57.4671]
[1610245994447,34.00959,1325.2,1324.9,1.34911]
[1610245994648,34.00959,1325.2,1325.0,1.35067]
[1610245996050,34.00959,1325.2,1325.0,1.80158]
[1610245996250,34.00959,1325.2,1324.9,2.25067]
[1610245996451,4.00959,1325.0,1324.9,2.25067]
[1610245996651,5.58889,1325.0,1324.7,2.69982]
[1610245996852,1.5793,1325.0,1324.7,2.69982]
[1610245997052,1.5793,1325.0,1324.8,2.69929]
[1610245997454,1.5793,1325.0,1324.9,2.69738]
[1610245997854,1.5793,1325.0,1324.6,3.14624]
[1610245998055,1.5793,1325.0,1324.9,2.69721]
[1610245998256,1.6763,1325.4,1324.9,2.69721]
[1610245998455,4.00959,1325.5,1325.3,4.00959]
[1610245998758,4.00959,1325.5,1325.4,2.24656]
[1610245999256,4.00959,1325.5,1325.3,4.00959]
[1610245999456,1.8646,1325.5,1325.3,4.00959]
[1610246000056,1.8646,1325.5,1325.4,2.24329]
[1610246001657,1.8646,1325.5,1325.3,6.25328]
[1610246001857,1.8646,1325.5,1325.3,2.24369]
[1610246002058,1.8646,1325.5,1325.2,2.24477]
[1610246002358,4.00959,1325.3,1325.2,2.24477]
[1610246002559,34.00959,1325.3,1325.2,2.24477]
[1610246002759,34.00959,1325.3,1324.9,6.70493]
[1610246002760,34.00959,1325.3,1325.1,2.24584]
[1610246003160,30.0,1325.3,1325.1,2.24584]
[1610246003560,1.8646,1325.5,1325.0,2.69209]
[1610246003963,1.8646,1325.5,1325.4,2.24216]
[1610246004362,5.87419,1325.5,1325.4,2.24216]
[1610246004763,35.87419,1325.5,1325.4,2.24216]
[1610246005263,35.87419,1325.5,1325.1,2.2465]
[1610246005666,35.87419,1325.5,1325.3,1.79779]
[1610246006264,35.87419,1325.5,1325.2,1.79943]
[1610246006465,4.00959,1325.3,1325.2,1.79943]
[1610246006667,34.00959,1325.3,1325.2,1.79943]
[1610246007268,34.00959,1325.3,1325.1,2.24841]
[1610246007568,34.00959,1325.3,1325.0,2.24812]
[1610246007970,34.00959,1325.3,1325.1,2.24731]
[1610246008670,34.00959,1325.3,1325.0,2.24627]
[1610246009775,34.00959,1325.3,1325.1,2.24483]
[1610246011175,34.00959,1325.3,1325.2,2.24334]
[1610246011978,34.00959,1325.3,1325.0,2.69133]
[1610246012378,4.00959,1325.3,1325.2,4.00959]
[1610246012578,1.8646,1325.5,1325.2,4.00959]
[1610246012780,30.0,1325.7,1325.2,4.00959]
[1610246012978,30.0,1325.7,1325.4,2.23908]
[1610246013377,30.0,1325.7,1325.5,2.23761]
[1610246013580,2.1491,1325.8,1325.6,2.23633]
[1610246013778,30.0,1326.0,1325.6,2.23633]
[1610246013980,30.0,1326.0,1325.7,2.23629]
[1610246014178,30.0,1326.0,1325.8,2.23518]
[1610246014379,30.0,1326.0,1325.9,4.00959]
[1610246014580,26.90799,1326.1,1325.9,4.00959]
[1610246014581,56.90799,1326.1,1325.9,4.00959]
[1610246014779,56.90799,1326.1,1325.8,2.23518]
[1610246015179,56.90799,1326.1,1326.0,1.78926]
[1610246015580,56.90799,1326.1,1325.8,2.2358]
[1610246016382,56.90799,1326.1,1326.0,4.00959]
[1610246017285,26.90799,1326.1,1326.0,4.00959]
[1610246017487,56.90799,1326.1,1326.0,4.00959]
[1610246017684,56.90799,1326.1,1326.0,6.24664]
[1610246017888,56.90799,1326.1,1326.0,2.23705]
[1610246018286,56.90799,1326.1,1325.9,2.23821]
[1610246019186,56.90799,1326.1,1325.8,6.24842]
[1610246019385,26.90799,1326.1,1325.8,6.24842]
[1610246019586,26.90799,1326.1,1325.9,2.23885]
[1610246019787,26.90799,1326.1,1326.0,2.23761]
[1610246020386,26.90799,1326.1,1326.0,6.2472]
[1610246020587,26.90799,1326.1,1326.0,4.00959]
[1610246020786,56.90799,1326.1,1326.0,4.00959]
[1610246020987,56.90799,1326.1,1325.8,2.68442]
[1610246021186,56.90799,1326.1,1326.0,2.2378]
[1610246021489,56.90799,1326.1,1325.9,2.23857]
[1610246021888,26.90799,1326.1,1325.9,2.23857]
[1610246022088,26.90799,1326.1,1326.0,2.2375]
[1610246022388,26.90799,1326.1,1326.0,6.24709]
[1610246022787,26.90799,1326.1,1326.0,4.00959]
[1610246023089,26.90799,1326.1,1326.0,6.24675]
[1610246023889,26.90799,1326.1,1326.0,4.00959]
[1610246024491,26.90799,1326.1,1326.0,6.24584]
[1610246024691,22.8984,1326.1,1326.0,6.24584]
[1610246025093,22.8984,1326.1,1326.0,4.00959]
[1610246027995,22.8984,1326.1,1326.0,6.6888]
[1610246028194,22.8984,1326.1,1326.0,4.00959]
[1610246030199,22.8984,1326.1,1326.0,6.68785]
[1610246031198,22.8984,1326.1,1326.0,4.00959]
[1610246032201,22.8984,1326.1,1326.0,6.6876]
[1610246032703,52.8984,1326.1,1326.0,6.6876]
[1610246033704,22.8984,1326.1,1326.0,6.6876]
[1610246036005,52.8984,1326.1,1326.0,6.6876]
[1610246037107,52.8984,1326.1,1326.0,4.00959]
[1610246037306,52.8984,1326.1,1326.0,6.24342]
[1610246038308,52.8984,1326.1,1326.0,4.00959]
[1610246039610,52.8984,1326.1,1326.0,6.24325]
[1610246041412,52.8984,1326.1,1326.0,2.23366]
[1610246041813,52.8984,1326.1,1325.9,2.23486]
[1610246042612,34.00959,1326.0,1325.9,2.23486]
[1610246042913,34.00959,1326.0,1325.8,2.23396]
[1610246043614,34.00959,1326.0,1325.9,2.23183]
[1610246044214,34.00959,1326.0,1325.8,2.232]
[1610246045213,34.00959,1326.0,1325.9,2.23134]
[1610246046217,30.0,1326.0,1325.7,2.67455]
[1610246046618,30.0,1326.0,1325.9,4.00959]
[1610246046917,30.0,1326.0,1325.8,2.67448]
[1610246047317,30.0,1326.0,1325.9,2.23042]
[1610246047919,30.0,1326.0,1325.8,2.23119]
[1610246048521,4.00959,1325.9,1325.8,2.23119]
[1610246048721,34.00959,1325.9,1325.8,2.23119]
[1610246056829,4.00959,1325.9,1325.8,2.23119]
[1610246057030,34.00959,1325.9,1325.8,2.23119]
[1610246059832,34.00959,1325.9,1325.6,6.67441]
[1610246060031,30.0,1326.0,1325.6,6.67441]
[1610246060233,30.0,1325.8,1325.7,49.4001]
[1610246060432,32.1917,1325.8,1325.7,52.06338]
[1610246061034,32.1917,1325.8,1325.7,49.4001]
[1610246061835,32.1917,1325.8,1325.7,52.06315]
[1610246062539,32.1917,1325.8,1325.7,49.4001]
[1610246062738,32.1917,1325.8,1325.7,53.40969]
[1610246065642,32.1917,1325.8,1325.7,56.0647]
[1610246066339,32.1917,1325.8,1325.7,53.40969]
[1610246066739,32.1917,1325.8,1325.7,56.06316]
[1610246067541,32.1917,1325.8,1325.7,53.40969]
[1610246067742,32.1917,1325.8,1325.7,49.4001]
[1610246068542,32.1917,1325.8,1325.7,51.61357]
[1610246068742,32.1917,1325.8,1325.7,49.4001]
[1610246068941,32.1917,1325.8,1325.6,2.21547]
[1610246069144,32.1917,1325.8,1325.5,2.21664]
[1610246069542,32.1917,1325.8,1325.7,1.77452]
[1610246069942,32.1917,1325.8,1325.6,1.7751]
[1610246070544,32.1917,1325.8,1325.5,1.77447]
[1610246070744,34.00959,1325.6,1325.5,1.77447]
[1610246074450,34.00959,1325.6,1325.3,2.2238]
[1610246074649,34.00959,1325.4,1325.3,2.2238]
[1610246074850,35.70339,1325.4,1325.3,2.2238]
[1610246076150,35.70339,1325.4,1325.2,2.22394]
[1610246081258,35.70339,1325.4,1325.2,1.77937]
[1610246081856,35.70339,1325.4,1325.3,1.33622]
[1610246082256,35.70339,1325.4,1325.2,1.33656]
[1610246082455,35.70339,1325.4,1325.1,1.33766]
[1610246082856,35.70339,1325.4,1324.9,1.33859]
[1610246082857,30.0,1325.1,1324.9,1.33859]
[1610246083056,30.0,1325.1,1324.6,55.8933]
[1610246083961,32.5015,1325.1,1324.6,55.8933]
[1610246084761,34.00959,1324.7,1324.6,55.8933]
[1610246084963,35.85079,1324.7,1324.6,55.8933]
[1610246087366,35.85079,1324.7,1324.3,1.78814]
[1610246087566,35.85079,1324.7,1324.2,1.78872]
[1610246087766,35.85079,1324.7,1324.0,1.78989]
[1610246088366,30.0,1324.2,1324.0,1.78989]
[1610246088768,34.00959,1324.1,1324.0,1.78989]
[1610246088969,34.00959,1324.1,1323.9,1.7889]
[1610246091471,34.00959,1324.1,1323.8,1.77644]
[1610246092272,34.00959,1324.1,1323.7,1.77641]
[1610246092473,81.96799,1324.1,1323.8,1.7748]
[1610246092879,34.00959,1323.9,1323.8,1.7748]
[1610246093178,36.14059,1323.9,1323.8,1.7748]
[1610246093580,36.14059,1323.9,1323.7,1.77588]
[1610246094582,36.14059,1323.9,1323.8,1.77753]
[1610246095183,36.14059,1323.9,1323.7,1.77715]
[1610246095482,36.14059,1323.9,1323.6,1.77794]
[1610246095882,36.14059,1323.9,1323.8,1.33443]
[1610246096083,36.14059,1323.9,1323.7,1.33452]
[1610246097785,81.04309,1323.9,1323.7,1.33452]
[1610246098386,81.04309,1323.9,1323.8,1.33324]
[1610246099587,81.04309,1323.9,1323.7,1.77552]
[1610246099787,81.04309,1323.9,1323.8,1.77462]
[1610246099987,51.04309,1323.9,1323.8,1.77462]
[1610246100187,81.04309,1323.9,1323.8,1.77462]
[1610246100590,81.04309,1323.9,1323.7,2.21519]
[1610246100789,81.04309,1323.9,1323.8,2.21202]
[1610246101488,81.04309,1323.9,1323.7,2.2126]
[1610246102394,81.04309,1323.9,1323.6,2.21143]
[1610246102791,77.0335,1323.9,1323.8,1.76928]
[1610246103093,77.0335,1323.9,1323.7,1.76951]
[1610246103492,77.0335,1323.9,1323.6,1.76925]
[1610246104294,77.0335,1323.9,1323.8,1.32701]
[1610246104794,77.0335,1323.9,1323.5,1.76981]
[1610246104795,81.04309,1323.9,1323.7,1.32865]
[1610246106094,81.04309,1323.9,1323.6,1.33344]
[1610246106495,81.04309,1323.9,1323.5,1.33515]
[1610246106896,30.0,1323.5,1323.3,1.33571]
[1610246107096,32.4944,1323.5,1323.3,1.33571]
[1610246107797,32.4944,1323.5,1323.2,1.33492]
[1610246108996,34.00959,1323.3,1323.2,1.33492]
[1610246109798,34.00959,1323.3,1323.1,1.33155]
[1610246111300,34.00959,1323.3,1323.2,1.33015]
[1610246112199,34.00959,1323.3,1323.0,1.77445]
[1610246112900,4.00959,1323.1,1322.8,2.21922]
[1610246113100,30.0,1323.0,1322.8,2.21922]
[1610246113300,31.8912,1323.0,1322.8,2.21922]
[1610246113702,31.8912,1323.0,1322.0,1.99635]
[1610246115003,4.00959,1322.3,1322.0,1.99635]
[1610246115204,2.0909,1322.6,1322.0,1.99635]
[1610246117010,6.10049,1322.6,1322.3,4.00959]
[1610246117710,2.0909,1322.6,1322.3,4.00959]
[1610246117910,1.8912,1323.0,1322.3,4.00959]
[1610246118310,2.4944,1323.5,1322.3,4.00959]
[1610246118511,30.0,1323.8,1322.3,4.00959]
[1610246118711,30.0,1323.8,1322.3,7.41459]
[1610246118912,2.131,1323.9,1323.1,4.00959]
[1610246118913,4.00959,1323.3,1323.1,4.00959]
[1610246120517,4.00959,1323.3,1322.4,3.53759]
[1610246120918,4.00959,1322.6,1322.5,4.00959]
[1610246123922,34.00959,1322.6,1322.3,3.405]
[1610246124723,34.00959,1322.6,1322.3,6.51122]
[1610246124922,4.00959,1322.4,1322.3,6.51122]
[1610246125423,4.00959,1322.4,1322.3,3.405]
[1610246125721,4.00959,1322.4,1322.3,6.51349]
[1610246126323,34.00959,1322.4,1322.3,6.51349]
[1610246127126,34.00959,1322.4,1322.3,3.405]
[1610246129026,34.00959,1322.4,1322.3,2.67019]
[1610246129428,4.00959,1322.4,1322.3,2.67019]
[1610246129827,4.00959,1322.4,1322.0,3.11359]
[1610246130331,4.00959,1322.4,1322.1,3.11163]
[1610246130527,34.00959,1322.4,1322.1,3.11163]
[1610246130931,34.00959,1322.2,1322.1,3.11163]
[1610246131129,34.00959,1322.2,1322.0,3.11387]
[1610246131334,34.00959,1322.2,1321.9,3.11499]
[1610246132143,34.00959,1322.2,1321.8,9.93177]
[1610246132735,34.00959,1322.2,1321.8,3.12077]
[1610246132935,4.00959,1321.9,1321.7,3.12592]
[1610246133135,34.00959,1321.9,1321.7,3.12592]
[1610246133336,34.00959,1321.9,1321.6,6.5338]
[1610246134136,4.00959,1321.9,1321.6,6.5338]
[1610246134337,4.00959,1321.9,1321.8,3.12805]
[1610246134739,4.00959,1321.9,1321.7,3.12791]
[1610246135838,4.00959,1321.9,1321.6,3.405]
[1610246135839,4.00959,1321.9,1321.8,3.12294]
[1610246136939,4.00959,1322.0,1321.8,3.12294]
[1610246137138,34.00959,1322.0,1321.8,3.12294]
[1610246137341,34.00959,1322.0,1321.6,3.405]
[1610246137539,34.00959,1322.0,1321.9,3.11961]
[1610246138041,4.00959,1322.0,1321.9,3.11961]
[1610246138544,34.00959,1322.0,1321.9,3.11961]
[1610246138943,34.00959,1322.0,1321.8,3.1201]
[1610246139142,36.54559,1322.0,1321.8,3.1201]
[1610246139344,36.54559,1322.0,1321.6,6.52712]
[1610246139643,36.54559,1322.0,1321.9,2.67561]
[1610246140045,36.54559,1322.0,1321.8,2.67665]
[1610246140645,36.54559,1322.0,1321.9,2.23212]
[1610246141046,36.54559,1322.0,1321.8,2.2343]
[1610246142048,36.54559,1322.0,1321.9,2.23645]
[1610246142451,36.54559,1322.0,1321.8,2.23694]
[1610246143147,36.54559,1322.0,1321.7,2.23524]
[1610246143348,36.54559,1322.0,1321.9,1.78871]
[1610246144146,36.54559,1322.0,1321.7,2.23333]
[1610246144349,30.0,1321.9,1321.7,2.23333]
[1610246144748,30.0,1321.9,1321.7,2.67545]
[1610246144950,4.00959,1321.8,1321.7,2.67545]
[1610246145149,4.00959,1321.8,1321.4,3.11984]
[1610246145348,4.00959,1321.8,1321.5,3.1173]
[1610246145749,4.00959,1321.8,1321.7,3.11585]
[1610246146548,34.00959,1321.8,1321.7,3.11585]
[1610246147149,34.00959,1321.8,1321.5,3.11857]
[1610246147349,36.16609,1321.8,1321.5,3.11857]
[1610246147551,36.16609,1321.8,1321.6,2.67668]
[1610246147750,36.16609,1321.8,1321.7,2.23237]
[1610246148152,36.16609,1321.8,1321.6,2.23276]
[1610246149052,36.16609,1321.8,1321.5,2.23534]
[1610246149451,36.16609,1321.8,1321.7,2.23379]
[1610246150353,36.16609,1321.8,1321.6,2.23206]
[1610246150952,36.16609,1321.8,1321.5,2.23371]
[1610246151353,36.16609,1321.8,1321.7,1.78743]
[1610246151755,36.16609,1321.8,1321.5,2.23371]
[1610246151954,36.16609,1321.8,1321.7,1.78693]
[1610246152553,36.16609,1321.8,1321.5,2.23371]
[1610246152855,36.16609,1321.8,1321.6,2.23345]
[1610246155052,36.16609,1321.8,1321.4,2.67834]
[1610246155053,36.16609,1321.8,1321.7,2.23084]
[1610246155454,36.16609,1321.8,1321.6,2.67563]
[1610246155853,36.16609,1321.8,1321.7,2.67429]
[1610246156553,36.16609,1321.8,1321.4,3.12116]
[1610246156853,36.16609,1321.8,1321.7,2.67563]
[1610246157254,36.16609,1321.8,1321.6,2.67776]
[1610246158455,36.16609,1321.8,1321.7,2.67588]
[1610246158656,6.16609,1321.8,1321.4,3.11992]
[1610246158855,34.00959,1321.8,1321.4,3.11992]
[1610246159057,4.00959,1321.5,1321.4,4.00959]
[1610246159456,30.0,1321.8,1321.4,4.00959]
[1610246159857,1.6744,1322.3,1321.7,3.11349]
[1610246160057,30.0,1322.5,1322.1,2.66785]
[1610246160459,30.0,1322.5,1322.4,2.22368]
[1610246160857,30.0,1322.5,1322.3,2.22429]
[1610246161059,34.00959,1322.4,1322.3,2.22429]
[1610246161259,34.00959,1322.4,1322.2,2.22543]
[1610246162270,34.00959,1322.4,1322.1,2.22612]
[1610246162467,34.00959,1322.4,1322.3,1.78132]
[1610246163467,34.00959,1322.4,1321.7,2.67175]
[1610246163468,34.00959,1322.4,1322.2,1.78233]
[1610246163868,34.00959,1322.4,1322.1,1.7833]
[1610246164869,34.00959,1322.4,1321.3,3.405]
[1610246164870,34.00959,1322.4,1322.3,1.33931]
[1610246165870,34.00959,1322.4,1322.2,1.33841]
[1610246166473,34.00959,1322.4,1322.3,1.33779]
[1610246169974,34.00959,1322.4,1322.0,1.78213]
[1610246169975,34.00959,1322.4,1322.2,1.33671]
[1610246170273,34.00959,1322.4,1322.1,1.78123]
[1610246170876,34.00959,1322.4,1322.2,1.78003]
[1610246171273,34.00959,1322.4,1322.3,1.77964]
[1610246171673,34.00959,1322.4,1322.2,1.77987]
[1610246172377,34.00959,1322.4,1322.1,1.77451]
[1610246172775,34.00959,1322.4,1322.3,1.33065]
[1610246173380,34.00959,1322.4,1322.2,1.33055]
[1610246174177,34.00959,1322.4,1322.1,1.33039]
[1610246174877,34.00959,1322.4,1322.0,1.3309]
[1610246175078,4.00959,1322.1,1322.0,1.3309]
[1610246175277,36.55829,1322.1,1322.0,1.3309]
[1610246176375,36.55829,1322.1,1321.9,1.33185]
[1610246177580,36.55829,1322.1,1321.4,2.21894]
[1610246177581,36.55829,1322.1,1322.0,1.33122]
[1610246178483,36.55829,1322.1,1321.9,1.33148]
[1610246179284,36.55829,1322.1,1321.8,1.33231]
[1610246180684,36.55829,1322.1,1321.9,1.33248]
[1610246186494,36.55829,1322.1,1322.0,1.33115]
[1610246186502,36.55829,1322.1,1321.8,1.77487]
[1610246186507,36.55829,1322.1,1321.9,1.77305]
[1610246186536,36.55829,1322.1,1321.8,1.77251]
[1610246186541,36.55829,1322.1,1322.0,1.32837]
[1610246186550,36.55829,1322.1,1321.9,1.3282]
[1610246186560,36.55829,1322.1,1321.8,1.32804]
[1610246186574,36.55829,1322.1,1321.7,1.32882]
[1610246186728,36.55829,1322.1,1321.5,1.33066]
[1610246186798,36.55829,1322.1,1321.2,1.77546]
[1610246187399,36.55829,1322.1,1321.3,1.33273]
[1610246187602,36.55829,1322.1,1321.1,1.33359]
[1610246188000,36.55829,1322.1,1321.0,1.33431]
[1610246188601,36.55829,1322.1,1321.1,1.3347]
[1610246188804,51.7595,1321.7,1321.1,1.3347]
[1610246189002,30.0,1321.6,1321.1,1.3347]
[1610246189203,4.00959,1321.2,1321.1,1.3347]
[1610246189402,36.09229,1321.2,1320.9,1.77938]
[1610246191003,36.09229,1321.2,1321.1,1.33345]
[1610246191704,36.09229,1321.2,1321.0,1.33406]
[1610246192804,36.09229,1321.2,1320.9,1.33634]
[1610246193206,4.00959,1321.0,1320.9,1.33634]
[1610246193405,34.00959,1321.0,1320.9,1.33634]
[1610246193605,34.00959,1321.0,1320.8,1.78238]
[1610246194009,34.00959,1321.0,1320.9,1.78219]
[1610246194208,34.00959,1321.0,1320.7,2.227]
[1610246195210,4.00959,1320.8,1320.7,2.227]
[1610246195410,35.63939,1320.8,1320.7,2.227]
[1610246195609,35.63939,1320.8,1320.6,2.22949]
[1610246196712,35.63939,1320.8,1320.5,2.23033]
[1610246197110,35.63939,1320.8,1320.7,1.7833]
[1610246198611,35.63939,1320.8,1320.6,1.78545]
[1610246200313,35.63939,1320.8,1320.3,2.23303]
[1610246200713,35.63939,1320.8,1320.6,1.78636]
[1610246205720,35.63939,1320.8,1320.7,1.78692]
[1610246205920,35.63939,1320.8,1320.6,2.23249]
[1610246206622,35.63939,1320.8,1320.5,2.23277]
[1610246206821,35.63939,1320.8,1320.3,1.91176]
[1610246207023,35.63939,1320.8,1320.7,1.7869]
[1610246207224,35.63939,1320.8,1319.9,3.12682]
[1610246207622,35.63939,1320.8,1319.8,3.12764]
[1610246207925,35.63939,1320.8,1320.7,1.78798]
[1610246208823,35.63939,1320.8,1320.6,1.78746]
[1610246209223,35.63939,1320.8,1320.5,1.7872]
[1610246209424,34.00959,1320.6,1320.5,1.7872]
[1610246210428,34.00959,1320.6,1319.7,3.405]
[1610246210826,34.00959,1320.6,1319.7,6.53213]
[1610246211226,34.00959,1320.6,1319.9,3.12556]
[1610246211428,34.00959,1320.0,1319.7,3.405]
[1610246212629,34.00959,1320.0,1319.9,3.12584]